Workbook

Sheet Bewegungen
A1: Haushaltsbuch Excel Vorlage
A3: Jahr | B3: =Listen!$B$2 -> 2026 | D3: Startsaldo | E3: =Listen!$B$3 -> € 1,000.00 | G3: Aktueller Saldo | H3: =IFERROR(LOOKUP(9.99999999999999E+307,$I$6:$I$505),Listen!$B$3) -> € 5,848.91
A4: Hinweis: Betrag (€) immer positiv eingeben; das Vorzeichen ergibt sich automatisch aus 'Typ'.
A5: Datum | B5: Typ | C5: Kategorie | D5: Konto | E5: Beschreibung | F5: Betrag (€) | G5: Betrag (±) | H5: Monat | I5: Saldo (€)
A6: 2026-01-02 | B6: Einnahme | C6: Gehalt | D6: Bank | E6: Monatsgehalt | F6: € 3,000.00 | G6: =IF($A6="","",IF($B6="Ausgabe",-ABS($F6),ABS($F6))) -> € 3,000.00 | H6: =IF($A6="","",DATE(YEAR($A6),MONTH($A6),1)) -> 2026-01-01 | I6: =IF($A6="","",Listen!$B$3 + SUM($G$6:G6)) -> € 4,000.00
A7: 2026-01-03 | B7: Ausgabe | C7: Miete / Wohnen | D7: Bank | E7: Miete Januar | F7: € 900.00 | G7: -€ 900.00 | H7: 2026-01-01 | I7: =IF($A7="","",Listen!$B$3 + SUM($G$6:G7)) -> € 3,100.00
A8: 2026-01-05 | B8: Ausgabe | C8: Lebensmittel | D8: Karte | E8: Wocheneinkauf | F8: € 85.40 | G8: -€ 85.40 | H8: 2026-01-01 | I8: =IF($A8="","",Listen!$B$3 + SUM($G$6:G8)) -> € 3,014.60
A9: 2026-01-08 | B9: Ausgabe | C9: Transport | D9: Karte | E9: ÖPNV Ticket | F9: € 49.00 | G9: -€ 49.00 | H9: 2026-01-01 | I9: =IF($A9="","",Listen!$B$3 + SUM($G$6:G9)) -> € 2,965.60
A10: 2026-01-12 | B10: Ausgabe | C10: Abonnements | D10: Bank | E10: Streaming | F10: € 12.99 | G10: -€ 12.99 | H10: 2026-01-01 | I10: =IF($A10="","",Listen!$B$3 + SUM($G$6:G10)) -> € 2,952.61
A11: 2026-01-15 | B11: Ausgabe | C11: Freizeit | D11: Karte | E11: Restaurant | F11: € 38.50 | G11: -€ 38.50 | H11: 2026-01-01 | I11: =IF($A11="","",Listen!$B$3 + SUM($G$6:G11)) -> € 2,914.11
A12: 2026-02-01 | B12: Einnahme | C12: Gehalt | D12: Bank | E12: Monatsgehalt | F12: € 3,000.00 | G12: € 3,000.00 | H12: 2026-02-01 | I12: =IF($A12="","",Listen!$B$3 + SUM($G$6:G12)) -> € 5,914.11
A13: 2026-02-03 | B13: Ausgabe | C13: Nebenkosten | D13: Bank | E13: Strom | F13: € 65.20 | G13: -€ 65.20 | H13: 2026-02-01 | I13: =IF($A13="","",Listen!$B$3 + SUM($G$6:G13)) -> € 5,848.91
I14: =IF($A14="","",Listen!$B$3 + SUM($G$6:G14)) -> 
I15: =IF($A15="","",Listen!$B$3 + SUM($G$6:G15)) -> 
I16: =IF($A16="","",Listen!$B$3 + SUM($G$6:G16)) -> 
I17: =IF($A17="","",Listen!$B$3 + SUM($G$6:G17)) -> 
I18: =IF($A18="","",Listen!$B$3 + SUM($G$6:G18)) -> 
I19: =IF($A19="","",Listen!$B$3 + SUM($G$6:G19)) -> 
I20: =IF($A20="","",Listen!$B$3 + SUM($G$6:G20)) -> 
I21: =IF($A21="","",Listen!$B$3 + SUM($G$6:G21)) -> 
I22: =IF($A22="","",Listen!$B$3 + SUM($G$6:G22)) -> 
I23: =IF($A23="","",Listen!$B$3 + SUM($G$6:G23)) -> 
I24: =IF($A24="","",Listen!$B$3 + SUM($G$6:G24)) -> 
I25: =IF($A25="","",Listen!$B$3 + SUM($G$6:G25)) -> 
I26: =IF($A26="","",Listen!$B$3 + SUM($G$6:G26)) -> 
I27: =IF($A27="","",Listen!$B$3 + SUM($G$6:G27)) -> 
I28: =IF($A28="","",Listen!$B$3 + SUM($G$6:G28)) -> 
I29: =IF($A29="","",Listen!$B$3 + SUM($G$6:G29)) -> 
I30: =IF($A30="","",Listen!$B$3 + SUM($G$6:G30)) -> 
I31: =IF($A31="","",Listen!$B$3 + SUM($G$6:G31)) -> 
I32: =IF($A32="","",Listen!$B$3 + SUM($G$6:G32)) -> 
I33: =IF($A33="","",Listen!$B$3 + SUM($G$6:G33)) -> 
I34: =IF($A34="","",Listen!$B$3 + SUM($G$6:G34)) -> 
I35: =IF($A35="","",Listen!$B$3 + SUM($G$6:G35)) -> 
I36: =IF($A36="","",Listen!$B$3 + SUM($G$6:G36)) -> 
I37: =IF($A37="","",Listen!$B$3 + SUM($G$6:G37)) -> 
I38: =IF($A38="","",Listen!$B$3 + SUM($G$6:G38)) -> 
I39: =IF($A39="","",Listen!$B$3 + SUM($G$6:G39)) -> 
I40: =IF($A40="","",Listen!$B$3 + SUM($G$6:G40)) -> 
I41: =IF($A41="","",Listen!$B$3 + SUM($G$6:G41)) -> 
I42: =IF($A42="","",Listen!$B$3 + SUM($G$6:G42)) -> 
I43: =IF($A43="","",Listen!$B$3 + SUM($G$6:G43)) -> 
I44: =IF($A44="","",Listen!$B$3 + SUM($G$6:G44)) -> 
I45: =IF($A45="","",Listen!$B$3 + SUM($G$6:G45)) -> 
I46: =IF($A46="","",Listen!$B$3 + SUM($G$6:G46)) -> 
I47: =IF($A47="","",Listen!$B$3 + SUM($G$6:G47)) -> 
I48: =IF($A48="","",Listen!$B$3 + SUM($G$6:G48)) -> 
I49: =IF($A49="","",Listen!$B$3 + SUM($G$6:G49)) -> 
I50: =IF($A50="","",Listen!$B$3 + SUM($G$6:G50)) -> 
I51: =IF($A51="","",Listen!$B$3 + SUM($G$6:G51)) -> 
I52: =IF($A52="","",Listen!$B$3 + SUM($G$6:G52)) -> 
I53: =IF($A53="","",Listen!$B$3 + SUM($G$6:G53)) -> 
I54: =IF($A54="","",Listen!$B$3 + SUM($G$6:G54)) -> 
I55: =IF($A55="","",Listen!$B$3 + SUM($G$6:G55)) -> 
I56: =IF($A56="","",Listen!$B$3 + SUM($G$6:G56)) -> 
I57: =IF($A57="","",Listen!$B$3 + SUM($G$6:G57)) -> 
I58: =IF($A58="","",Listen!$B$3 + SUM($G$6:G58)) -> 
I59: =IF($A59="","",Listen!$B$3 + SUM($G$6:G59)) -> 
I60: =IF($A60="","",Listen!$B$3 + SUM($G$6:G60)) -> 
I61: =IF($A61="","",Listen!$B$3 + SUM($G$6:G61)) -> 
I62: =IF($A62="","",Listen!$B$3 + SUM($G$6:G62)) -> 
I63: =IF($A63="","",Listen!$B$3 + SUM($G$6:G63)) -> 
I64: =IF($A64="","",Listen!$B$3 + SUM($G$6:G64)) -> 
I65: =IF($A65="","",Listen!$B$3 + SUM($G$6:G65)) -> 
I66: =IF($A66="","",Listen!$B$3 + SUM($G$6:G66)) -> 
I67: =IF($A67="","",Listen!$B$3 + SUM($G$6:G67)) -> 
I68: =IF($A68="","",Listen!$B$3 + SUM($G$6:G68)) -> 
I69: =IF($A69="","",Listen!$B$3 + SUM($G$6:G69)) -> 
G70: =IF($A70="","",IF($B70="Ausgabe",-ABS($F70),ABS($F70))) ->  | H70: =IF($A70="","",DATE(YEAR($A70),MONTH($A70),1)) ->  | I70: =IF($A70="","",Listen!$B$3 + SUM($G$6:G70)) -> 
I71: =IF($A71="","",Listen!$B$3 + SUM($G$6:G71)) -> 
I72: =IF($A72="","",Listen!$B$3 + SUM($G$6:G72)) -> 
I73: =IF($A73="","",Listen!$B$3 + SUM($G$6:G73)) -> 
I74: =IF($A74="","",Listen!$B$3 + SUM($G$6:G74)) -> 
I75: =IF($A75="","",Listen!$B$3 + SUM($G$6:G75)) -> 
I76: =IF($A76="","",Listen!$B$3 + SUM($G$6:G76)) -> 
I77: =IF($A77="","",Listen!$B$3 + SUM($G$6:G77)) -> 
I78: =IF($A78="","",Listen!$B$3 + SUM($G$6:G78)) -> 
I79: =IF($A79="","",Listen!$B$3 + SUM($G$6:G79)) -> 
I80: =IF($A80="","",Listen!$B$3 + SUM($G$6:G80)) -> 
I81: =IF($A81="","",Listen!$B$3 + SUM($G$6:G81)) -> 
I82: =IF($A82="","",Listen!$B$3 + SUM($G$6:G82)) -> 
I83: =IF($A83="","",Listen!$B$3 + SUM($G$6:G83)) -> 
I84: =IF($A84="","",Listen!$B$3 + SUM($G$6:G84)) -> 
I85: =IF($A85="","",Listen!$B$3 + SUM($G$6:G85)) -> 
I86: =IF($A86="","",Listen!$B$3 + SUM($G$6:G86)) -> 
I87: =IF($A87="","",Listen!$B$3 + SUM($G$6:G87)) -> 
I88: =IF($A88="","",Listen!$B$3 + SUM($G$6:G88)) -> 
I89: =IF($A89="","",Listen!$B$3 + SUM($G$6:G89)) -> 
I90: =IF($A90="","",Listen!$B$3 + SUM($G$6:G90)) -> 
I91: =IF($A91="","",Listen!$B$3 + SUM($G$6:G91)) -> 
I92: =IF($A92="","",Listen!$B$3 + SUM($G$6:G92)) -> 
I93: =IF($A93="","",Listen!$B$3 + SUM($G$6:G93)) -> 
I94: =IF($A94="","",Listen!$B$3 + SUM($G$6:G94)) -> 
I95: =IF($A95="","",Listen!$B$3 + SUM($G$6:G95)) -> 
I96: =IF($A96="","",Listen!$B$3 + SUM($G$6:G96)) -> 
I97: =IF($A97="","",Listen!$B$3 + SUM($G$6:G97)) -> 
I98: =IF($A98="","",Listen!$B$3 + SUM($G$6:G98)) -> 
I99: =IF($A99="","",Listen!$B$3 + SUM($G$6:G99)) -> 
I100: =IF($A100="","",Listen!$B$3 + SUM($G$6:G100)) -> 
I101: =IF($A101="","",Listen!$B$3 + SUM($G$6:G101)) -> 
I102: =IF($A102="","",Listen!$B$3 + SUM($G$6:G102)) -> 
I103: =IF($A103="","",Listen!$B$3 + SUM($G$6:G103)) -> 
I104: =IF($A104="","",Listen!$B$3 + SUM($G$6:G104)) -> 
I105: =IF($A105="","",Listen!$B$3 + SUM($G$6:G105)) -> 
I106: =IF($A106="","",Listen!$B$3 + SUM($G$6:G106)) -> 
I107: =IF($A107="","",Listen!$B$3 + SUM($G$6:G107)) -> 
I108: =IF($A108="","",Listen!$B$3 + SUM($G$6:G108)) -> 
I109: =IF($A109="","",Listen!$B$3 + SUM($G$6:G109)) -> 
I110: =IF($A110="","",Listen!$B$3 + SUM($G$6:G110)) -> 
I111: =IF($A111="","",Listen!$B$3 + SUM($G$6:G111)) -> 
I112: =IF($A112="","",Listen!$B$3 + SUM($G$6:G112)) -> 
I113: =IF($A113="","",Listen!$B$3 + SUM($G$6:G113)) -> 
I114: =IF($A114="","",Listen!$B$3 + SUM($G$6:G114)) -> 
I115: =IF($A115="","",Listen!$B$3 + SUM($G$6:G115)) -> 
I116: =IF($A116="","",Listen!$B$3 + SUM($G$6:G116)) -> 
I117: =IF($A117="","",Listen!$B$3 + SUM($G$6:G117)) -> 
I118: =IF($A118="","",Listen!$B$3 + SUM($G$6:G118)) -> 
I119: =IF($A119="","",Listen!$B$3 + SUM($G$6:G119)) -> 
I120: =IF($A120="","",Listen!$B$3 + SUM($G$6:G120)) -> 
I121: =IF($A121="","",Listen!$B$3 + SUM($G$6:G121)) -> 
I122: =IF($A122="","",Listen!$B$3 + SUM($G$6:G122)) -> 
I123: =IF($A123="","",Listen!$B$3 + SUM($G$6:G123)) -> 
I124: =IF($A124="","",Listen!$B$3 + SUM($G$6:G124)) -> 
I125: =IF($A125="","",Listen!$B$3 + SUM($G$6:G125)) -> 
I126: =IF($A126="","",Listen!$B$3 + SUM($G$6:G126)) -> 
I127: =IF($A127="","",Listen!$B$3 + SUM($G$6:G127)) -> 
I128: =IF($A128="","",Listen!$B$3 + SUM($G$6:G128)) -> 
I129: =IF($A129="","",Listen!$B$3 + SUM($G$6:G129)) -> 
I130: =IF($A130="","",Listen!$B$3 + SUM($G$6:G130)) -> 
I131: =IF($A131="","",Listen!$B$3 + SUM($G$6:G131)) -> 
I132: =IF($A132="","",Listen!$B$3 + SUM($G$6:G132)) -> 
I133: =IF($A133="","",Listen!$B$3 + SUM($G$6:G133)) -> 
G134: =IF($A134="","",IF($B134="Ausgabe",-ABS($F134),ABS($F134))) ->  | H134: =IF($A134="","",DATE(YEAR($A134),MONTH($A134),1)) ->  | I134: =IF($A134="","",Listen!$B$3 + SUM($G$6:G134)) -> 
I135: =IF($A135="","",Listen!$B$3 + SUM($G$6:G135)) -> 
I136: =IF($A136="","",Listen!$B$3 + SUM($G$6:G136)) -> 
I137: =IF($A137="","",Listen!$B$3 + SUM($G$6:G137)) -> 
I138: =IF($A138="","",Listen!$B$3 + SUM($G$6:G138)) -> 
I139: =IF($A139="","",Listen!$B$3 + SUM($G$6:G139)) -> 
I140: =IF($A140="","",Listen!$B$3 + SUM($G$6:G140)) -> 
I141: =IF($A141="","",Listen!$B$3 + SUM($G$6:G141)) -> 
I142: =IF($A142="","",Listen!$B$3 + SUM($G$6:G142)) -> 
I143: =IF($A143="","",Listen!$B$3 + SUM($G$6:G143)) -> 
I144: =IF($A144="","",Listen!$B$3 + SUM($G$6:G144)) -> 
I145: =IF($A145="","",Listen!$B$3 + SUM($G$6:G145)) -> 
I146: =IF($A146="","",Listen!$B$3 + SUM($G$6:G146)) -> 
I147: =IF($A147="","",Listen!$B$3 + SUM($G$6:G147)) -> 
I148: =IF($A148="","",Listen!$B$3 + SUM($G$6:G148)) -> 
I149: =IF($A149="","",Listen!$B$3 + SUM($G$6:G149)) -> 
I150: =IF($A150="","",Listen!$B$3 + SUM($G$6:G150)) -> 
I151: =IF($A151="","",Listen!$B$3 + SUM($G$6:G151)) -> 
I152: =IF($A152="","",Listen!$B$3 + SUM($G$6:G152)) -> 
I153: =IF($A153="","",Listen!$B$3 + SUM($G$6:G153)) -> 
I154: =IF($A154="","",Listen!$B$3 + SUM($G$6:G154)) -> 
I155: =IF($A155="","",Listen!$B$3 + SUM($G$6:G155)) -> 
I156: =IF($A156="","",Listen!$B$3 + SUM($G$6:G156)) -> 
I157: =IF($A157="","",Listen!$B$3 + SUM($G$6:G157)) -> 
I158: =IF($A158="","",Listen!$B$3 + SUM($G$6:G158)) -> 
I159: =IF($A159="","",Listen!$B$3 + SUM($G$6:G159)) -> 
I160: =IF($A160="","",Listen!$B$3 + SUM($G$6:G160)) -> 
I161: =IF($A161="","",Listen!$B$3 + SUM($G$6:G161)) -> 
I162: =IF($A162="","",Listen!$B$3 + SUM($G$6:G162)) -> 
I163: =IF($A163="","",Listen!$B$3 + SUM($G$6:G163)) -> 
I164: =IF($A164="","",Listen!$B$3 + SUM($G$6:G164)) -> 
I165: =IF($A165="","",Listen!$B$3 + SUM($G$6:G165)) -> 
I166: =IF($A166="","",Listen!$B$3 + SUM($G$6:G166)) -> 
I167: =IF($A167="","",Listen!$B$3 + SUM($G$6:G167)) -> 
I168: =IF($A168="","",Listen!$B$3 + SUM($G$6:G168)) -> 
I169: =IF($A169="","",Listen!$B$3 + SUM($G$6:G169)) -> 
I170: =IF($A170="","",Listen!$B$3 + SUM($G$6:G170)) -> 
I171: =IF($A171="","",Listen!$B$3 + SUM($G$6:G171)) -> 
I172: =IF($A172="","",Listen!$B$3 + SUM($G$6:G172)) -> 
I173: =IF($A173="","",Listen!$B$3 + SUM($G$6:G173)) -> 
I174: =IF($A174="","",Listen!$B$3 + SUM($G$6:G174)) -> 
I175: =IF($A175="","",Listen!$B$3 + SUM($G$6:G175)) -> 
I176: =IF($A176="","",Listen!$B$3 + SUM($G$6:G176)) -> 
I177: =IF($A177="","",Listen!$B$3 + SUM($G$6:G177)) -> 
I178: =IF($A178="","",Listen!$B$3 + SUM($G$6:G178)) -> 
I179: =IF($A179="","",Listen!$B$3 + SUM($G$6:G179)) -> 
I180: =IF($A180="","",Listen!$B$3 + SUM($G$6:G180)) -> 
I181: =IF($A181="","",Listen!$B$3 + SUM($G$6:G181)) -> 
I182: =IF($A182="","",Listen!$B$3 + SUM($G$6:G182)) -> 
I183: =IF($A183="","",Listen!$B$3 + SUM($G$6:G183)) -> 
I184: =IF($A184="","",Listen!$B$3 + SUM($G$6:G184)) -> 
I185: =IF($A185="","",Listen!$B$3 + SUM($G$6:G185)) -> 
I186: =IF($A186="","",Listen!$B$3 + SUM($G$6:G186)) -> 
I187: =IF($A187="","",Listen!$B$3 + SUM($G$6:G187)) -> 
I188: =IF($A188="","",Listen!$B$3 + SUM($G$6:G188)) -> 
I189: =IF($A189="","",Listen!$B$3 + SUM($G$6:G189)) -> 
I190: =IF($A190="","",Listen!$B$3 + SUM($G$6:G190)) -> 
I191: =IF($A191="","",Listen!$B$3 + SUM($G$6:G191)) -> 
I192: =IF($A192="","",Listen!$B$3 + SUM($G$6:G192)) -> 
I193: =IF($A193="","",Listen!$B$3 + SUM($G$6:G193)) -> 
I194: =IF($A194="","",Listen!$B$3 + SUM($G$6:G194)) -> 
I195: =IF($A195="","",Listen!$B$3 + SUM($G$6:G195)) -> 
I196: =IF($A196="","",Listen!$B$3 + SUM($G$6:G196)) -> 
I197: =IF($A197="","",Listen!$B$3 + SUM($G$6:G197)) -> 
G198: =IF($A198="","",IF($B198="Ausgabe",-ABS($F198),ABS($F198))) ->  | H198: =IF($A198="","",DATE(YEAR($A198),MONTH($A198),1)) ->  | I198: =IF($A198="","",Listen!$B$3 + SUM($G$6:G198)) -> 
I199: =IF($A199="","",Listen!$B$3 + SUM($G$6:G199)) -> 
I200: =IF($A200="","",Listen!$B$3 + SUM($G$6:G200)) -> 
I201: =IF($A201="","",Listen!$B$3 + SUM($G$6:G201)) -> 
... 304 more rows

Sheet Übersicht
A1: Übersicht (Monat)
A3: Monat | B3: 2026-01-01
A4: Jahr | B4: =Listen!$B$2 -> 2026
A6: Einnahmen (Monat) | B6: =SUMIFS(Bewegungen!$G$6:$G$505,Bewegungen!$B$6:$B$505,"Einnahme",Bewegungen!$H$6:$H$505,$B$3) -> € 3,000.00
A7: Ausgaben (Monat) | B7: =ABS(SUMIFS(Bewegungen!$G$6:$G$505,Bewegungen!$B$6:$B$505,"Ausgabe",Bewegungen!$H$6:$H$505,$B$3)) -> € 1,085.89
A8: Netto (Monat) | B8: =B6-B7 -> € 1,914.11
A10: Ausgaben nach Kategorie (Monat)
A12: Kategorie | B12: Budget (€) | C12: Ist (€) | D12: Differenz (€)
A13: Miete / Wohnen | B13: € 900.00 | C13: =ABS(SUMIFS(Bewegungen!$G$6:$G$505,Bewegungen!$B$6:$B$505,"Ausgabe",Bewegungen!$C$6:$C$505,$A13,Bewegungen!$H$6:$H$505,$B$3)) -> € 900.00 | D13: =$B13-$C13 -> € 0.00
A14: Nebenkosten | B14: € 180.00 | C14: =ABS(SUMIFS(Bewegungen!$G$6:$G$505,Bewegungen!$B$6:$B$505,"Ausgabe",Bewegungen!$C$6:$C$505,$A14,Bewegungen!$H$6:$H$505,$B$3)) -> € 0.00 | D14: € 180.00
A15: Lebensmittel | B15: € 350.00 | C15: =ABS(SUMIFS(Bewegungen!$G$6:$G$505,Bewegungen!$B$6:$B$505,"Ausgabe",Bewegungen!$C$6:$C$505,$A15,Bewegungen!$H$6:$H$505,$B$3)) -> € 85.40 | D15: € 264.60
A16: Transport | B16: € 120.00 | C16: =ABS(SUMIFS(Bewegungen!$G$6:$G$505,Bewegungen!$B$6:$B$505,"Ausgabe",Bewegungen!$C$6:$C$505,$A16,Bewegungen!$H$6:$H$505,$B$3)) -> € 49.00 | D16: € 71.00
A17: Gesundheit | B17: € 60.00 | C17: =ABS(SUMIFS(Bewegungen!$G$6:$G$505,Bewegungen!$B$6:$B$505,"Ausgabe",Bewegungen!$C$6:$C$505,$A17,Bewegungen!$H$6:$H$505,$B$3)) -> € 0.00 | D17: € 60.00
A18: Freizeit | B18: € 120.00 | C18: =ABS(SUMIFS(Bewegungen!$G$6:$G$505,Bewegungen!$B$6:$B$505,"Ausgabe",Bewegungen!$C$6:$C$505,$A18,Bewegungen!$H$6:$H$505,$B$3)) -> € 38.50 | D18: € 81.50
A19: Bildung | B19: € 40.00 | C19: =ABS(SUMIFS(Bewegungen!$G$6:$G$505,Bewegungen!$B$6:$B$505,"Ausgabe",Bewegungen!$C$6:$C$505,$A19,Bewegungen!$H$6:$H$505,$B$3)) -> € 0.00 | D19: € 40.00
A20: Versicherungen | B20: € 90.00 | C20: =ABS(SUMIFS(Bewegungen!$G$6:$G$505,Bewegungen!$B$6:$B$505,"Ausgabe",Bewegungen!$C$6:$C$505,$A20,Bewegungen!$H$6:$H$505,$B$3)) -> € 0.00 | D20: € 90.00
A21: Abonnements | B21: € 35.00 | C21: =ABS(SUMIFS(Bewegungen!$G$6:$G$505,Bewegungen!$B$6:$B$505,"Ausgabe",Bewegungen!$C$6:$C$505,$A21,Bewegungen!$H$6:$H$505,$B$3)) -> € 12.99 | D21: € 22.01
A22: Kleidung | B22: € 60.00 | C22: =ABS(SUMIFS(Bewegungen!$G$6:$G$505,Bewegungen!$B$6:$B$505,"Ausgabe",Bewegungen!$C$6:$C$505,$A22,Bewegungen!$H$6:$H$505,$B$3)) -> € 0.00 | D22: € 60.00
A23: Steuern / Gebühren | B23: € 50.00 | C23: =ABS(SUMIFS(Bewegungen!$G$6:$G$505,Bewegungen!$B$6:$B$505,"Ausgabe",Bewegungen!$C$6:$C$505,$A23,Bewegungen!$H$6:$H$505,$B$3)) -> € 0.00 | D23: € 50.00
A24: Sonstiges | B24: € 75.00 | C24: =ABS(SUMIFS(Bewegungen!$G$6:$G$505,Bewegungen!$B$6:$B$505,"Ausgabe",Bewegungen!$C$6:$C$505,$A24,Bewegungen!$H$6:$H$505,$B$3)) -> € 0.00 | D24: € 75.00

Sheet Listen
A1: Parameter
A2: Jahr | B2: 2026
A3: Startsaldo | B3: € 1,000.00
A6: Typ | B6: Kategorie | C6: Monatsbudget (€)
A7: Ausgabe | B7: Miete / Wohnen | C7: € 900.00
A8: Ausgabe | B8: Nebenkosten | C8: € 180.00
A9: Ausgabe | B9: Lebensmittel | C9: € 350.00
A10: Ausgabe | B10: Transport | C10: € 120.00
A11: Ausgabe | B11: Gesundheit | C11: € 60.00
A12: Ausgabe | B12: Freizeit | C12: € 120.00
A13: Ausgabe | B13: Bildung | C13: € 40.00
A14: Ausgabe | B14: Versicherungen | C14: € 90.00
A15: Ausgabe | B15: Abonnements | C15: € 35.00
A16: Ausgabe | B16: Kleidung | C16: € 60.00
A17: Ausgabe | B17: Steuern / Gebühren | C17: € 50.00
A18: Ausgabe | B18: Sonstiges | C18: € 75.00
A19: Einnahme | B19: Gehalt | C19: € 0.00
A20: Einnahme | B20: Bonus | C20: € 0.00
A21: Einnahme | B21: Freelance | C21: € 0.00
A22: Einnahme | B22: Rückerstattung | C22: € 0.00
A23: Einnahme | B23: Zinsen | C23: € 0.00
A24: Einnahme | B24: Sonstige Einnahmen | C24: € 0.00
A27: Konten
A28: Konto
A29: Bargeld
A30: Bank
A31: Karte
A34: Monate (für Auswahl)
A35: Monat (1. Tag)
A36: 2026-01-01
A37: 2026-02-01
A38: 2026-03-01
A39: 2026-04-01
A40: 2026-05-01
A41: 2026-06-01
A42: 2026-07-01
A43: 2026-08-01
A44: 2026-09-01
A45: 2026-10-01
A46: 2026-11-01
A47: 2026-12-01
